lending/lending_fUSD_20251015
["ID","MTS","AMOUNT","RATE_DAILY","PERIOD"]
[391327849,1760537434551,-500.0,0.00014811,2]
[391327850,1760537434560,-151.0,0.00014811,2]
[391327851,1760537434569,-500.0,0.00014811,2]
[391327852,1760537434579,-500.0,0.00014811,2]
[391327853,1760537434588,-500.0,0.00014811,2]
[391327854,1760537434597,-1425.68762769,0.00014811,2]
[391327855,1760537434607,-2655.15,0.00014811,2]
[391327856,1760537434616,-4630.47727704,0.00014811,2]
[391327857,1760537434625,-221.06040845,0.00014814,2]
[391327858,1760537434635,-1267.0,0.0001482,2]
[391327859,1760537434645,-4630.47727704,0.00014822,2]
[391327860,1760537434658,-221.06040845,0.00014829,2]
[391327861,1760537434667,-4630.47727704,0.00014833,2]
[391327862,1760537434676,-3617.74176151,0.00014839,2]
[391327863,1760537435097,-384.21461993,0.00014839,2]
[391327864,1760537435151,-339.84,0.00014839,2]
[391327865,1760537435166,-500.0,0.00014839,2]
[391327866,1760537435224,-944.8387729,0.00014839,2]
[391327867,1760537435234,-221.06040845,0.00014843,2]
[391327868,1760537435243,-4609.24581598,0.00014844,2]
[391327869,1760537435255,-21.23146106,0.00014844,2]
[391327870,1760537435264,-241.0,0.00014846,2]
[391327871,1760537435274,-6315.9492484,0.0001485,2]
[391327872,1760537435283,-150.52475,0.0001485,2]
[391327873,1760537435292,-250.0,0.00014855,2]
[391327874,1760537435301,-4630.47727704,0.00014856,2]
[391327875,1760537435311,-3407.0,0.00014856,2]
[391327876,1760537435320,-749.0,0.00014856,2]
[391327877,1760537435329,-2049.0,0.00014856,2]
[391327878,1760537435338,-1588.0,0.00014856,2]
[391327879,1760537435347,-604.0,0.00014856,2]
[391327880,1760537435356,-1309.0,0.00014856,2]
[391327881,1760537435366,-571.0,0.00014856,2]
[391327882,1760537435375,-816.0,0.00014856,2]
[391327883,1760537435385,-4014.0,0.00014856,2]
[391327884,1760537435394,-1583.0,0.00014856,2]
[391327885,1760537435405,-2545.0,0.00014856,2]
[391327886,1760537435414,-221.06040845,0.00014857,2]
[391327887,1760537435424,-4630.47727704,0.00014867,2]
[391327888,1760537435433,-221.06040845,0.00014871,2]
[391327889,1760537435442,-500.0,0.00014873,2]
[391327890,1760537435451,-4630.47727704,0.00014878,2]
[391327891,1760537435460,-221.06040845,0.00014886,2]
[391327892,1760537435470,-4630.47727704,0.00014889,2]
[391327893,1760537435479,-5000.0,0.0001489,2]
[391327894,1760537435488,-513.77818267,0.00014891,2]
[391327895,1760537435498,-3594.04458258,0.00014891,2]
[391327896,1760537435508,-513.77818258,0.00014892,2]
[391327897,1760537435518,-3594.04458258,0.00014892,2]
[391327898,1760537435528,-513.77818258,0.00014893,2]
[391327899,1760537435537,-3594.04458258,0.00014893,2]
[391327900,1760537435547,-159.12450126,0.00014893,2]
[391327901,1760537435556,-223.1488326,0.00014893,2]
[391327902,1760537435565,-513.77818258,0.00014894,2]
[391327903,1760537435575,-3594.04458258,0.00014894,2]
[391327904,1760537435584,-223.14883257,0.00014895,2]
[391327905,1760537435594,-513.77818258,0.00014895,2]
[391327906,1760537435603,-3594.04458258,0.00014895,2]
[391327907,1760537435612,-513.77818258,0.00014896,2]
[391327908,1760537435622,-3594.04458258,0.00014896,2]
[391327909,1760537435631,-223.14883257,0.00014897,2]
[391327910,1760537435640,-513.77818258,0.00014897,2]
[391327911,1760537435651,-3594.04458258,0.00014897,2]
[391327912,1760537435661,-513.77818258,0.00014898,2]
[391327913,1760537435671,-3594.04458258,0.00014898,2]
[391327914,1760537435680,-223.14883257,0.00014898,2]
[391327915,1760537435689,-513.77818258,0.00014899,2]
[391327916,1760537435699,-3594.04458258,0.00014899,2]
[391327917,1760537435709,-234.57330286,0.000149,2]
[391327918,1760537435718,-77155.56520781,0.000149,2]
[391327919,1760537435730,-44812.44538578,0.000149,2]
[391327923,1760537438281,-188.02385891,0.00014856,2]
[391327924,1760537438292,-447.20556288,0.00014856,2]
[391327925,1760537438314,-496.3975,0.00014856,2]
[391327926,1760537438325,-50.37307821,0.00014856,2]
[391327927,1760537438335,-190.95,0.0001489,2]
[391327928,1760537438344,-500.0,0.00014897,2]
[391327929,1760537438353,-500.0,0.00014897,2]
[391327930,1760537438368,-500.0,0.00014897,2]
[391327931,1760537438377,-500.0,0.00014897,2]
[391327932,1760537438387,-500.0,0.00014897,2]
[391327933,1760537438397,-228.67693179,0.00014897,2]
[391327934,1760537438411,-271.32306821,0.00014897,2]
[391327935,1760537438421,-500.0,0.00014897,2]
[391327936,1760537438430,-353.64348364,0.00014897,2]
[391327937,1760537438442,-146.35651636,0.00014897,2]
[391327938,1760537438452,-500.0,0.00014897,2]
[391327939,1760537438461,-500.0,0.00014897,2]
[391327940,1760537438471,-500.0,0.00014897,2]
[391327941,1760537438480,-500.0,0.00014897,2]
[391327942,1760537438491,-500.0,0.00014897,2]
[391327943,1760537438501,-251.73348364,0.00014897,2]
[391327944,1760537438520,-248.26651636,0.00014897,2]
[391327945,1760537438529,-500.0,0.00014897,2]
[391327946,1760537438539,-500.0,0.00014897,2]
[391327947,1760537438549,-500.0,0.00014897,2]
[391327948,1760537438558,-500.0,0.00014897,2]
[391327949,1760537438568,-500.0,0.00014897,2]
[391327950,1760537438578,-500.0,0.00014897,2]
[391327951,1760537438588,-500.0,0.00014897,2]
[391327952,1760537438598,-500.0,0.00014897,2]
[391327953,1760537438608,-500.0,0.00014897,2]
[391327954,1760537438618,-500.0,0.00014897,2]
[391327955,1760537438627,-500.0,0.00014897,2]
[391327956,1760537438637,-341.04755659,0.00014897,2]
[391327957,1760537438649,-158.95244341,0.00014897,2]
[391327958,1760537438662,-500.0,0.00014897,2]
[391327959,1760537438672,-500.0,0.00014897,2]
[391327960,1760537438682,-500.0,0.00014897,2]
[391327961,1760537438692,-500.0,0.00014897,2]
[391327962,1760537438702,-500.0,0.00014897,2]
[391327963,1760537438712,-500.0,0.00014897,2]
[391327964,1760537438722,-2417.21882813,0.000149,2]
[391327965,1760537438757,-618.79243224,0.000149,2]
[391327966,1760537438767,-1000.0,0.000149,2]
[391327967,1760537438776,-1014.70756784,0.000149,2]
[391327968,1760537438789,-974.34999995,0.000149,2]
[391327969,1760537438805,-812.35360854,0.000149,2]
[391327970,1760537438817,-1829.06610071,0.000149,2]
[391327971,1760537438827,-513.77818258,0.000149,2]
[391327972,1760537438836,-3594.04458258,0.000149,2]
[391327973,1760537438846,-223.14883257,0.000149,2]
[391327974,1760537438856,-186.76988255,0.000149,2]
[391327975,1760537438868,-11.88799325,0.000149,2]
[391327976,1760537438878,-221.06040845,0.000149,2]
[391327977,1760537438888,-195.0,0.00014929,2]
[391327978,1760537439353,-186.79073016,0.00014929,2]
[391327979,1760537439455,-150.0,0.00014929,2]
[391327980,1760537439465,-250.0,0.00014929,2]
[391327981,1760537439475,-195.0,0.00014929,2]
[391327982,1760537439485,-2000.0,0.00014929,2]
[391327983,1760537439500,-300.0,0.00014929,2]
[391327984,1760537439510,-383.42224889,0.00014929,2]
[391327985,1760537439520,-250.0,0.00014929,2]
[391327986,1760537439530,-2500.0,0.00014929,2]
[391327987,1760537439540,-2500.0,0.00014929,2]
[391327988,1760537439550,-2416.89238865,0.00014929,2]
[391327991,1760537440295,-83.10761135,0.00014929,2]
[391327992,1760537440305,-301.3415442,0.00014929,2]
[391327993,1760537440315,-195.0,0.00014929,2]
[391327994,1760537440324,-300.0,0.00014929,2]
[391327995,1760537440334,-2500.0,0.00014929,2]
[391327996,1760537440344,-1277.64018233,0.00014929,2]
[391327997,1760537440353,-195.0,0.00014929,2]
[391327998,1760537440363,-2000.0,0.00014929,2]
[391327999,1760537440374,-300.0,0.00014929,2]
[391328000,1760537440383,-211.50550233,0.00014929,2]
[391328001,1760537440393,-11141.0,0.00014959,2]
[391328002,1760537440403,-150.0,0.00014959,2]
[391328003,1760537440419,-168.19,0.00014959,2]
[391328004,1760537440429,-150.0,0.00014959,2]
[391328005,1760537440438,-3915.116,0.00014965,2]
[391328006,1760537440448,-500.0,0.00014973,2]
[391328007,1760537440458,-500.0,0.00014973,2]
[391328008,1760537440468,-500.0,0.00014973,2]
[391328009,1760537440478,-500.0,0.00014973,2]
[391328010,1760537440487,-500.0,0.00014973,2]
[391328011,1760537440496,-500.0,0.00014973,2]
[391328012,1760537440506,-500.0,0.00014973,2]
[391328013,1760537440516,-500.0,0.00014973,2]
[391328014,1760537440526,-500.0,0.00014973,2]
[391328015,1760537440536,-500.0,0.00014973,2]
[391328016,1760537440546,-500.45473872,0.00014973,2]
[391328017,1760537440556,-214.01852963,0.00014973,2]
[391328018,1760537440566,-533.15473545,0.00014973,2]
[391328019,1760537440576,-501.59337004,0.00014973,2]
[391328020,1760537440586,-502.80166226,0.00014973,2]
[391328021,1760537440596,-500.0,0.00014973,2]
[391328022,1760537440605,-500.0,0.00014973,2]
[391328023,1760537440615,-501.05788927,0.00014973,2]
[391328024,1760537440625,-500.0,0.00014973,2]
[391328025,1760537440635,-500.0,0.00014973,2]
[391328026,1760537440644,-500.0,0.00014973,2]
[391328027,1760537440654,-500.0,0.00014973,2]
[391328028,1760537440669,-500.0,0.00014973,2]
[391328029,1760537440678,-500.0,0.00014973,2]
[391328030,1760537440688,-500.0,0.00014973,2]
[391328031,1760537440697,-500.0,0.00014973,2]
[391328032,1760537440707,-500.0,0.00014973,2]
[391328033,1760537440716,-479.26697898,0.00014973,2]
[391328034,1760537440726,-248.09,0.00014973,2]
[391328035,1760537440735,-150.52475,0.0001498,2]
[391328036,1760537440744,-217.21849313,0.00014989,2]
[391328037,1760537440754,-420.12575241,0.00014989,2]
[391328038,1760537440765,-302.30592878,0.00014989,2]
[391328039,1760537440774,-500.0,0.00014989,2]
[391328040,1760537440784,-180.83464255,0.00014989,2]
[391328041,1760537440793,-500.0,0.00014989,2]
[391328042,1760537440803,-666.0,0.00014989,2]
[391328043,1760537440812,-1077.0,0.0001499,2]
[391328044,1760537440821,-92735.39517591,0.0001499,4]
[391328045,1760537440834,-44684.6,0.0001499,4]
[391328046,1760537440850,-3256.89791071,0.0001499,4]
[391328047,1760537440862,-653.49354509,0.0001499,4]
[391328048,1760537440873,-1112034.31596329,0.0001499,4]
[391328049,1760537440885,-390.204,0.0001499,4]
[391328050,1760537440897,-286.09800003,0.0001499,4]
[391328051,1760537441193,-1.6e-07,0.0001499,4]
[391328052,1760537441223,-260454.51686521,0.0001499,4]
[391328053,1760537441235,-1182.2249635,0.0001499,4]
[391328054,1760537441247,-1829.9000002,0.0001499,4]
[391328055,1760537441259,-1119.5149639,0.0001499,4]
[391328056,1760537441275,-54221.19203869,0.0001499,4]
[391328059,1760537443365,-546.55,0.00014278,2]
[391328060,1760537443375,-902.0,0.00014856,2]
[391328061,1760537443385,-185.47679674,0.0001499,2]
[391328062,1760537443397,-75044.4829279,0.0001499,2]
[391328063,1760537443409,-822955.51707214,0.0001499,4]
[391328064,1760537443425,-8709.59358281,0.0001499,4]
[391328065,1760537443536,-842.26145612,0.0001499,4]
[391328066,1760537446605,-432.81706839,0.0001499,4]
[391328068,1760537578652,-475.00672568,0.00013472,2]
[391328069,1760537633437,4206.2,0.0002739,120]
[391328070,1760537700037,2000.0,0.0002739,120]
[391328071,1760537711024,437.91,0.0002739,120]
[391328072,1760537728642,-264.83424814,0.00013405,2]
[391328073,1760537732630,-158.6219773,0.00013405,2]
[391328074,1760537734179,-373.39818333,0.00013405,2]
[391328075,1760537737548,-298.0050657,0.00013405,2]
[391328076,1760537742102,-258.2595874,0.00013405,2]
[391328077,1760537743554,-294.86113518,0.00013405,2]
[391328078,1760537745002,-500.0,0.00013405,2]
[391328079,1760537749078,-166.66,0.00013405,2]
[391328080,1760537753098,-157.87233395,0.00013405,2]
[391328081,1760537753121,-8.78766605,0.00013472,2]
[391328083,1760537893799,-16.20560827,0.00013472,2]
[391328084,1760537893822,-350.32876773,0.00013515,2]
[391328085,1760537897955,-228.5854843,0.00013515,2]
[391328086,1760537901362,-183.71229,0.00013515,2]
[391328087,1760537903221,-183.20918751,0.00013515,2]
[391328088,1760537905143,-292.07579649,0.00013515,2]
[391328089,1760537911920,-406.094376,0.00013515,2]
[391328090,1760537912873,-332.7721079,0.00013515,2]
[391328091,1760537914313,-23.22199007,0.00013515,2]
[391328092,1760537914336,-250.0,0.00013558,2]
[391328093,1760537914358,-45.85256639,0.00013558,2]
[391328094,1760537923838,-114.58721339,0.00013558,2]
[391328095,1760537923860,-101.91593927,0.00013572,2]
[391328096,1760537938728,-250.0,0.00013372,2]
[391328097,1760537941139,-230.22,0.00013372,2]
[391328098,1760537943375,-325.28575186,0.00013305,2]
[391328099,1760537945368,-238.86813299,0.00013305,2]
[391328100,1760537948868,-109.66547515,0.00013305,2]
[391328101,1760537948891,-19.78,0.00013372,2]
[391328102,1760537948913,-51.73644698,0.00013572,2]
[391328103,1760537951418,-7.11802404,0.00013572,2]
[391328104,1760537969683,-159.54197596,0.00013644,2]
[391328105,1760538036818,190.0,7.703e-05,2]
[391328106,1760538037094,189.0,7.703e-05,2]
[391328107,1760538088795,2522.0,0.00027397,120]
[391328108,1760538124671,11735.28410973,0.00012751,2]
[391328110,1760538179211,-166.66,0.00013394,2]
[391328111,1760538182207,-333.34,0.00013394,2]
[391328112,1760538182231,-31.20615645,0.00013419,2]
[391328119,1760538268632,-245.05071539,0.00013319,2]
[391328120,1760538270642,-254.94928461,0.00013319,2]
[391328121,1760538270665,-118.79384355,0.00013419,2]
[391328122,1760538270688,-51.00499461,0.00013475,2]
[391328127,1760538389823,-290.09813136,0.00012959,2]
[391328128,1760538392388,-391.04471857,0.00012959,2]
[391328129,1760538395593,-170.92434197,0.00012959,2]
[391328130,1760538397771,-200.15240599,0.00012959,2]
[391328131,1760538399759,-349.57071686,0.00012959,2]
[391328132,1760538401209,-159.37659119,0.00012959,2]
[391328134,1760538433665,-291.25309406,0.00012959,2]
[391328135,1760538433688,-8.74690594,0.00013319,2]
[391328140,1760538514707,265.30042341,0.000107,2]
[391328141,1760538522331,668861.18788452,0.00012535,2]
[391328142,1760538522357,660099.66119502,0.00012535,2]
[391328143,1760538523653,-157.91309406,0.00013319,2]
[391328144,1760538598781,-288.472165,0.00012869,2]
[391328145,1760538607961,-167.60418897,0.00012869,2]
[391328146,1760538611545,-437.06868035,0.00012869,2]
[391328147,1760538613068,-286.02848769,0.00012869,2]
[391328148,1760538629342,-54.76647799,0.00012869,2]
[391328149,1760538629366,-114.29995538,0.00013172,2]
[391328150,1760538630844,-636.29262286,0.00013172,2]
[391328171,1760538631537,-975.80935985,0.00013172,2]
[391328172,1760538631557,-273.59806191,0.00013172,2]
[391328173,1760538631567,-2000.0,0.00013356,2]
[391328174,1760538631576,-1200.0,0.00013474,2]
[391328175,1760538631585,-7299.22153849,0.00013475,5]
[391328176,1760538631594,-250.0,0.00013475,2]
[391328177,1760538631603,-209.0,0.00013486,2]
[391328178,1760538631612,-300.0,0.00013486,2]
[391328179,1760538631621,-300.0,0.00013486,2]
[391328180,1760538631631,-300.0,0.00013486,2]
[391328181,1760538631639,-214.0,0.00013487,2]
[391328182,1760538631649,-150.0,0.00013488,2]
[391328183,1760538631660,-150.0,0.00013488,2]
[391328184,1760538631669,-150.0,0.00013488,2]
[391328185,1760538631679,-150.0,0.00013488,2]
[391328186,1760538631688,-150.0,0.00013488,2]
[391328187,1760538631697,-150.0,0.00013488,2]
[391328188,1760538631706,-150.71580322,0.00013488,2]
[391328189,1760538631716,-150.0,0.00013488,2]
[391328190,1760538631725,-151.23891044,0.00013488,2]
[391328191,1760538631734,-150.0,0.00013488,2]
[391328192,1760538631744,-150.0,0.00013488,2]
[391328193,1760538631753,-180.0,0.00013488,2]
[391328194,1760538631762,-161.84506399,0.00013488,2]
[391328195,1760538631771,-150.0,0.00013499,2]
[391328196,1760538631780,-32571.33834576,0.000135,2]
[391328197,1760538631790,-364.5462,0.00013572,2]
[391328198,1760538631800,-987.1,0.00013643,2]
[391328199,1760538631809,-567.62,0.00013699,2]
[391328200,1760538631819,-166.66,0.00013699,2]
[391328201,1760538631828,-166.66,0.00013759,2]
[391328202,1760538631837,-4954.24404095,0.00013768,2]
[391328203,1760538631865,-1124.33551959,0.00013768,2]
[391328204,1760538631885,-2888.33839999,0.00013768,2]
[391328205,1760538631897,-4455.68203947,0.00013768,2]
[391328206,1760538631908,-200.0,0.00013771,2]
[391328207,1760538631917,-1000.0,0.00013772,2]
[391328208,1760538631927,-617.4766,0.00013772,2]
[391328210,1760538631936,-5155.84136043,0.00013772,2]
[391328212,1760538631947,-630.31,0.00013772,2]
[391328308,1760538638451,-824.41053957,0.00013772,2]
[391328310,1760538638462,-308.83287963,0.00013772,2]
[391328316,1760538638513,-2191.16712037,0.00013772,2]
[391328318,1760538638524,-166.66,0.00013836,2]
[391328320,1760538638536,-225.6,0.00013862,2]
[391328322,1760538638547,-225.6,0.00013862,2]
[391328324,1760538638557,-225.6,0.00013862,2]
[391328326,1760538638569,-150.0,0.00013862,2]
[391328328,1760538638579,-2611.9,0.00013863,2]
[391328330,1760538638588,-151.0,0.00013863,2]
[391328332,1760538638598,-151.0,0.00013863,2]
[391328334,1760538638607,-151.0,0.00013863,2]
[391328336,1760538638616,-151.0,0.00013863,2]
[391328338,1760538638626,-151.0,0.00013863,2]
[391328340,1760538638636,-151.0,0.00013863,2]
[391328342,1760538638645,-151.0,0.00013863,2]
[391328344,1760538638654,-151.0,0.00013863,2]
[391328346,1760538638667,-151.0,0.00013863,2]
[391328348,1760538638677,-151.0,0.00013863,2]
[391328350,1760538638686,-151.0,0.00013863,2]
[391328352,1760538638696,-151.0,0.00013863,2]
[391328354,1760538638705,-151.0,0.00013863,2]
[391328356,1760538638714,-203.27553451,0.00013863,2]
[391328358,1760538638724,-200.0,0.00013863,2]
[391328360,1760538638734,-500.0,0.00013871,2]
[391328362,1760538638744,-500.0,0.00013871,2]
[391328364,1760538638753,-500.0,0.00013871,2]
[391328366,1760538638762,-500.0,0.00013871,2]
[391328368,1760538638771,-500.0,0.00013871,2]
[391328370,1760538638781,-500.0,0.00013871,2]
[391328372,1760538638791,-500.0,0.00013871,2]
[391328374,1760538638800,-500.0,0.00013871,2]
[391328376,1760538638809,-500.0,0.00013871,2]
[391328378,1760538638819,-500.0,0.00013871,2]
[391328380,1760538638828,-500.0,0.00013871,2]
[391328381,1760538638838,-500.0,0.00013871,2]
[391328382,1760538638847,-500.0,0.00013871,2]
[391328383,1760538638857,-500.0,0.00013871,2]
[391328384,1760538638867,-500.0,0.00013871,2]
[391328385,1760538638876,-500.0,0.00013871,2]
[391328386,1760538638885,-500.0,0.00013871,2]
[391328387,1760538638895,-500.0,0.00013871,2]
[391328388,1760538638904,-500.0,0.00013871,2]
[391328389,1760538638916,-500.0,0.00013871,2]
[391328390,1760538638925,-500.0,0.00013871,2]
[391328391,1760538638935,-500.0,0.00013871,2]
[391328392,1760538638944,-500.0,0.00013871,2]
[391328393,1760538638954,-500.0,0.00013871,2]
[391328394,1760538638963,-500.0,0.00013871,2]
[391328395,1760538638973,-596.72484226,0.00013871,2]
[391328396,1760538638982,-500.0,0.00013871,2]
[391328397,1760538638992,-500.0,0.00013871,2]
[391328398,1760538639001,-500.0,0.00013871,2]
[391328399,1760538639011,-500.0,0.00013871,2]
[391328400,1760538639020,-500.0,0.00013871,2]
[391328401,1760538639030,-500.0,0.00013871,2]
[391328402,1760538639039,-599.99999999,0.00013871,2]
[391328403,1760538639049,-500.0,0.00013871,2]
[391328404,1760538639058,-500.0,0.00013871,2]
[391328405,1760538639068,-576.14348289,0.00013871,2]
[391328406,1760538639078,-500.0,0.00013871,2]
[391328407,1760538639088,-500.0,0.00013871,2]
[391328408,1760538639097,-250.0,0.00013871,2]
[391328409,1760538639107,-500.0,0.00013871,2]
[391328410,1760538639117,-500.0,0.00013871,2]
[391328411,1760538639128,-500.0,0.00013871,2]
[391328412,1760538639137,-500.0,0.00013871,2]
[391328413,1760538639147,-500.0,0.00013871,2]
[391328414,1760538639160,-500.0,0.00013871,2]
[391328415,1760538639170,-500.0,0.00013871,2]
[391328416,1760538639180,-167.44826403,0.00013871,2]
[391328417,1760538639190,-500.0,0.00013871,2]
[391328418,1760538639200,-500.0,0.00013871,2]
[391328419,1760538639210,-500.0,0.00013871,2]
[391328420,1760538639221,-216876.58,0.00013872,2]
[391328421,1760538639231,-8290.33,0.00013892,2]
[391328422,1760538639242,-695.07,0.000139,2]
[391328424,1760538639252,-1000.0,0.00013921,2]
[391328426,1760538639262,-166.66,0.00013973,2]
[391328428,1760538639274,-150.0,0.00013987,2]
[391328429,1760538639284,-150.0,0.00013987,2]
[391328430,1760538639294,-695.07,0.00014041,2]
[391328431,1760538639303,-14040.0134199,0.00014059,2]
[391328432,1760538639312,-166.66,0.0001411,2]
[391328433,1760538639322,-3055.39491828,0.00014126,2]
[391328434,1760538639332,-2611.9,0.00014137,2]
[391328435,1760538639341,-2500.0,0.00014156,2]
[391328436,1760538639350,-2000.0,0.00014156,2]
[391328437,1760538639360,-300.0,0.00014156,2]
[391328438,1760538639369,-300.0,0.00014156,2]
[391328439,1760538639386,-300.0,0.00014156,2]
[391328440,1760538639395,-250.0,0.00014156,2]
[391328441,1760538639404,-666.0,0.00014158,3]
[391328443,1760538639417,-150.0,0.00014178,2]
[391328445,1760538639427,-1092.76,0.00014178,2]
[391328447,1760538639436,-150.0,0.00014178,2]
[391328449,1760538639445,-166.66,0.00014199,2]
[391328450,1760538639455,-3055.39491822,0.00014212,2]
[391328451,1760538639464,-150.0,0.00014237,2]
[391328452,1760538639473,-150.0,0.00014237,2]
[391328453,1760538639483,-150.0,0.00014237,2]
[391328454,1760538639496,-150.0,0.00014237,2]
[391328455,1760538639505,-225.6,0.00014238,2]
[391328456,1760538639514,-166.66,0.00014247,2]
[391328457,1760538639523,-322.6107,0.00014248,2]
[391328458,1760538639534,-597.92172281,0.00014248,2]
[391328459,1760538639543,-300.0,0.00014255,2]
[391328460,1760538639552,-3055.39491822,0.00014298,2]
[391328461,1760538639562,-1086.63,0.00014378,2]
[391328462,1760538639572,-166.66,0.00014384,2]
[391328463,1760538639581,-3055.39491822,0.00014384,2]
[391328464,1760538639590,-2611.9,0.00014411,2]
[391328465,1760538639599,-170.28734741,0.00014457,2]
[391328466,1760538639608,-3055.39491822,0.0001447,2]
[391328467,1760538639618,-546.55,0.00014478,2]
[391328468,1760538639628,-168.19,0.00014478,2]
[391328469,1760538639640,-150.0,0.00014478,2]
[391328470,1760538639649,-150.0,0.00014487,2]
[391328471,1760538639662,-150.0,0.00014487,2]
[391328472,1760538639672,-151.0,0.00014528,2]
[391328473,1760538639681,-3055.39491822,0.00014556,2]
[391328474,1760538639691,-889.80654812,0.00014586,2]
[391328475,1760538639701,-299.0,0.00014602,2]
[391328476,1760538639710,-150.0,0.00014612,2]
[391328477,1760538639721,-255.0,0.00014619,2]
[391328478,1760538639731,-165.37380084,0.0001462,2]
[391328479,1760538639740,-166.66,0.00014638,2]
[391328480,1760538639749,-299.0,0.00014642,2]
[391328481,1760538639758,-3055.39491822,0.00014642,2]
[391328482,1760538639767,-165.37380082,0.00014676,2]
[391328483,1760538639776,-170.28734741,0.00014678,2]
[391328484,1760538639785,-2611.9,0.00014685,2]
[391328485,1760538639794,-2142.27932282,0.00014699,2]
[391328486,1760538639803,-275.98030535,0.00014706,2]
[391328487,1760538639812,-1425.0,0.00014714,2]
[391328489,1760538639821,-1000.0,0.0001472,2]
[391328491,1760538639830,-1000.0,0.0001472,2]
[391328493,1760538639839,-1000.0,0.00014724,2]
[391328494,1760538639848,-3055.39491822,0.00014728,2]
[391328496,1760538639857,-1425.0,0.0001473,2]
[391328500,1760538639867,-1425.0,0.0001473,2]
[391328501,1760538639876,-165.37380082,0.00014732,2]
[391328504,1760538639885,-150.0,0.00014733,2]
[391328505,1760538639894,-1000.0,0.00014733,2]
[391328507,1760538639903,-1425.0,0.00014735,2]
[391328509,1760538639915,-552.21161356,0.0001474,2]
[391328511,1760538639924,-1000.0,0.00014741,2]
[391328513,1760538639933,-1425.0,0.00014742,2]
[391328515,1760538639942,-1425.0,0.00014747,2]
[391328517,1760538639952,-1000.0,0.00014749,2]
[391328519,1760538639962,-1000.0,0.00014751,2]
[391328521,1760538639972,-225.6,0.00014759,2]
[391328523,1760538639984,-150.0,0.00014762,2]
[391328525,1760538639994,-9341.27411674,0.00014769,2]
[391328528,1760538640009,-8469.06690263,0.00014769,2]
[391328529,1760538640019,-1425.0,0.00014775,2]
[391328531,1760538640030,-1425.0,0.00014775,2]
[391328534,1760538640040,-1000.0,0.00014782,2]
[391328535,1760538640051,-420.0,0.00014782,2]
[391328538,1760538640060,-420.0,0.00014782,2]
[391328540,1760538640070,-300.0,0.00014783,2]
[391328542,1760538640080,-1000.0,0.00014784,2]
[391328543,1760538640090,-2319.74108294,0.00014785,2]
[391328546,1760538640109,-859.92200199,0.00014785,2]
[391328549,1760538640122,-834.33691507,0.00014785,2]
[391328551,1760538640132,-506.98591138,0.00014786,2]
[391328553,1760538640143,-217.50717862,0.00014788,2]
[391328555,1760538640156,-1207.49282138,0.00014788,2]
[391328557,1760538640173,-165.37380082,0.00014788,2]
[391328559,1760538640183,-500.0,0.00014794,2]
[391328561,1760538640194,-1425.0,0.00014794,2]
[391328563,1760538640204,-1000.0,0.00014797,2]
[391328565,1760538640214,-2220.40032994,0.000148,2]
[391328567,1760538640224,-3473.3541,0.000148,2]
[391328606,1760538640592,-1506.9626,0.000148,2]
[391328608,1760538640602,-1000.0,0.00014803,2]
[391328610,1760538640611,-1425.0,0.00014803,2]
[391328612,1760538640621,-1000.0,0.0001481,2]
[391328614,1760538640630,-1000.0,0.00014813,2]
[391328616,1760538640639,-3055.39491822,0.00014814,2]
[391328618,1760538640649,-151.45736606,0.00014815,2]
[391328620,1760538640662,-1131.84158507,0.00014815,2]
[391328622,1760538640671,-150.0,0.00014815,2]